bitfinex/quotes_ETHUSD_20240811
["timestamp","ask_amount","ask_price","bid_price","bid_amount"]
[1723381501964,0.49130173,2631.0,2630.9,10.77506]
[1723381502315,2.65912,2632.5,2630.9,10.77506]
[1723381502316,2.65892,2632.7,2631.2,2.66035]
[1723381502546,2.4408,2632.8,2632.1,2.65939]
[1723381502769,2.65893,2632.7,2632.1,2.65939]
[1723381503070,2.65893,2632.7,2631.9,2.65963]
[1723381503071,2.65893,2632.7,2632.0,2.65953]
[1723381503251,2.65893,2632.7,2632.1,2.65947]
[1723381503436,2.65893,2632.7,2632.1,5.31887]
[1723381503638,2.65893,2632.7,2631.7,2.4537]
[1723381503639,2.65937,2632.2,2631.7,2.4537]
[1723381503846,2.65937,2632.2,2631.3,5.38996904]
[1723381503847,2.65937,2632.2,2631.5,2.65997]
[1723381504049,2.65943,2632.2,2631.5,2.65997]
[1723381504365,5.31887,2632.2,2631.5,2.65997]
[1723381504551,2.65943,2632.2,2631.5,6.15198]
[1723381504752,2.65898,2632.6,2631.5,0.83202]
[1723381504924,0.775842,2632.7,2631.7,2.65986]
[1723381505272,2.65861,2633.0,2632.0,2.65948]
[1723381505422,2.65861,2633.0,2632.2,2.6593]
[1723381505423,2.65884,2632.8,2632.2,2.6593]
[1723381506333,3.19549613,2633.2,2632.5,2.65905]
[1723381506721,2.65883,2632.8,2632.3,2.409]
[1723381506923,3.19552613,2633.2,2632.4,0.07596755]
[1723381507259,2.65863,2633.0,2632.4,2.90758675]
[1723381507573,2.65863,2633.0,2631.5,0.83202]
[1723381507574,2.65915,2632.5,2631.5,0.83202]
[1723381507734,2.65915,2632.5,2631.9,2.65967]
[1723381507936,2.65915,2632.5,2631.8,2.65967]
[1723381508679,2.65956,2632.1,2631.5,3.49202]
[1723381508968,2.6593,2632.3,2631.6,3.009162]
[1723381509174,7.3,2632.5,2631.3,2.409]
[1723381509461,2.65904,2632.6,2631.3,2.409]
[1723381509462,2.65905,2632.6,2631.9,5.06866]
[1723381509771,2.65905,2632.6,2631.9,2.409]
[1723381509939,2.65923,2632.4,2631.8,2.65972]
[1723381510140,2.65904,2632.6,2631.8,2.6597]
[1723381510340,2.65907,2632.5,2631.9,2.6596]
[1723381510540,2.65907,2632.5,2632.0,2.65955]
[1723381510853,22.42881,2632.8,2632.0,3.191475]
[1723381511054,2.65903,2632.6,2631.9,2.65967]
[1723381511431,2.4493,2632.9,2631.8,2.6597]
[1723381511724,2.65899,2632.6,2631.8,2.6597]
[1723381512255,5.31805,2632.6,2631.9,2.65965]
[1723381512439,0.531805,2632.6,2631.6,5.06892]
[1723381512648,2.65937,2632.2,2631.6,5.06892]
[1723381512874,2.6592,2632.4,2631.7,2.65981]
[1723381513064,7.3,2632.7,2631.6,2.409]
[1723381513250,2.65917,2632.4,2631.8,2.65969]
[1723381514326,2.65917,2632.4,2631.8,3.432555]
[1723381514767,7.3,2632.7,2631.8,0.772865]
[1723381515073,2.65957,2632.0,2631.6,2.409]
[1723381515240,0.55,2631.9,2631.6,2.409]
[1723381515425,2.65988,2631.7,2631.3,2.409]
[1723381515631,0.55,2631.6,2631.0,2.66051]
[1723381515929,0.55,2631.6,2631.4,2.6601]
[1723381516228,0.55,2631.6,2631.4,5.32021]
[1723381516428,0.55,2631.6,2631.5,2.66007]
[1723381516667,0.55,2631.6,2631.4,5.0691]
[1723381516829,7.3,2632.2,2631.4,2.409]
[1723381517032,12.19,2632.5,2631.4,2.409]
[1723381517033,2.65915,2632.5,2631.8,2.65969]
[1723381517257,2.6592,2632.4,2631.8,2.65969]
[1723381517466,2.65928,2632.3,2631.6,2.65991]
[1723381517652,7.3,2632.7,2631.4,5.06912]
[1723381517653,0.265928,2632.2,2631.4,5.06912]
[1723381517828,2.65933,2632.3,2631.5,2.66007]
[1723381518029,2.65933,2632.3,2631.6,2.65994]
[1723381518237,2.65933,2632.3,2631.4,2.409]
[1723381518238,9.95891,2632.7,2631.8,2.65967]
[1723381518428,9.95891,2632.7,2632.0,2.65949]
[1723381518642,2.65891,2632.7,2632.0,2.65949]
[1723381518843,2.65891,2632.7,2632.1,2.65939]
[1723381519037,2.4493,2632.8,2631.8,0.27356554]
[1723381519265,2.4493,2632.8,2631.6,2.409]
[1723381519266,2.65889,2632.7,2631.6,2.409]
[1723381519587,2.65938,2632.2,2631.6,5.60981]
[1723381519951,19.49,2633.0,2631.6,5.60981]
[1723381519952,9.95862,2633.0,2632.3,2.65921]
[1723381520157,9.95862,2633.0,2632.1,2.65944]
[1723381520158,2.65882,2632.8,2632.1,2.65941]
[1723381520495,2.65953,2632.1,2631.5,2.66004]
[1723381520655,2.65954,2632.1,2631.5,2.66004]
[1723381520982,2.65954,2632.1,2631.4,5.409]
[1723381521160,2.65954,2632.1,2631.5,5.66001]
[1723381521365,2.65963,2632.0,2631.5,3.0]
[1723381521567,0.55,2631.9,2631.5,0.62623743]
[1723381521751,0.55,2632.0,2631.5,6.28628743]
[1723381522158,0.55,2632.0,2631.6,2.65997]
[1723381522563,0.55,2632.1,2631.5,3.62623743]
[1723381522919,0.55,2632.2,2631.7,5.31967]
[1723381523059,0.55,2632.3,2631.9,2.65964]
[1723381523389,0.55,2632.4,2631.9,3.191585]
[1723381523599,0.55,2632.4,2631.9,3.191555]
[1723381523772,0.55,2632.4,2631.9,2.6596]
[1723381523970,0.55,2632.4,2632.1,5.31887]
[1723381524171,0.55,2632.4,2632.1,5.31882]
[1723381524375,17.29812,2632.8,2632.1,5.31882]
[1723381524376,0.55,2632.6,2632.1,5.31882]
[1723381524582,0.55,2632.7,2632.2,2.65933]
[1723381524785,0.55,2632.7,2632.0,2.409]
[1723381524982,2.65861,2633.0,2632.3,2.65918]
[1723381525184,3.19553613,2633.2,2632.5,2.65904]
[1723381525492,3.19553613,2633.2,2632.3,2.65921]
[1723381525493,2.65867,2632.9,2632.3,2.65921]
[1723381525679,2.65879,2632.8,2632.3,2.65921]
[1723381526460,2.65865,2633.0,2632.3,2.6592]
[1723381526461,2.65872,2632.9,2632.3,2.6592]
[1723381526714,2.65865,2633.0,2632.3,2.6592]
[1723381526715,0.55,2632.8,2632.4,2.65911]
[1723381526870,0.55,2632.9,2632.4,2.65911]
[1723381527267,0.55,2632.9,2632.5,2.65906]
[1723381527470,0.53712613,2633.2,2632.7,2.65881]
[1723381527993,0.53712613,2633.2,2633.1,2.65846]
[1723381528195,0.53712613,2633.2,2633.0,2.65849]
[1723381528368,0.53712613,2633.2,2632.8,2.65868]
[1723381528571,0.53712613,2633.2,2633.0,2.65856]
[1723381529111,0.53712613,2633.2,2632.8,2.65868]
[1723381529112,0.53712613,2633.2,2633.1,7.82237089]
[1723381529281,2.65731,2634.3,2633.6,2.65789]
[1723381529480,2.65729,2634.3,2633.4,2.65811]
[1723381529805,2.6576,2634.0,2633.2,5.08779]
[1723381530102,5.409119,2634.2,2633.5,2.65799]
[1723381530311,2.65726,2634.3,2633.7,2.65784]
[1723381530609,2.6572,2634.4,2633.6,2.65788]
[1723381530823,2.486,2634.5,2633.8,2.65768]
[1723381530981,5.14305,2634.5,2633.9,2.65758]
[1723381531187,2.486,2634.5,2634.0,2.65753]
[1723381531586,5.14279,2634.8,2634.1,2.65736]
[1723381531798,0.265678,2634.7,2634.2,2.65732]
[1723381532004,0.265678,2634.7,2634.3,2.65724]
[1723381532208,5.14254,2635.1,2634.2,0.10185264]
[1723381532209,2.65675,2634.8,2634.2,0.10185264]
[1723381532508,2.486,2635.1,2634.0,5.31504]
[1723381532509,2.65689,2634.7,2634.3,0.09993589]
[1723381532710,2.922579,2634.7,2634.3,0.09993589]
[1723381532908,2.922579,2634.7,2634.1,2.65744]
[1723381532909,0.265689,2634.7,2633.7,2.4295]
[1723381533207,2.65655,2635.0,2634.4,0.09988101]
[1723381533367,5.14249,2635.1,2634.4,2.65713]
[1723381533573,2.65649,2635.1,2634.5,0.09982613]
[1723381533771,0.779878,2635.1,2634.5,0.09982613]
[1723381533974,2.65647,2635.1,2634.6,2.65693]
[1723381534383,2.65627,2635.3,2634.7,0.09962997]
[1723381534584,0.59470691,2636.0,2634.7,0.09962997]
[1723381534585,2.65635,2635.2,2634.7,2.52912997]
[1723381534817,2.65655,2635.0,2634.7,0.09962997]
[1723381535007,2.65674,2634.8,2634.0,5.65746]
[1723381535210,2.65701,2634.6,2634.0,5.65746]
[1723381535522,2.65701,2634.6,2634.1,0.09984866]
[1723381535523,5.579741,2634.6,2634.1,0.09984866]
[1723381535710,2.922711,2634.6,2634.1,0.09984866]
[1723381535913,2.65707,2634.5,2634.1,0.09984866]
[1723381536112,0.55,2634.4,2634.1,0.09984866]
[1723381536314,2.65717,2634.4,2634.1,0.09984866]
[1723381536489,0.55,2634.3,2634.1,0.09984866]
[1723381536889,0.55,2634.3,2633.8,2.65768]
[1723381537090,0.55,2634.3,2634.2,0.09985597]
[1723381537390,0.55,2634.3,2633.8,2.65768]
[1723381537890,0.55,2634.3,2633.9,0.10002065]
[1723381538223,0.55,2634.3,2633.9,2.75759065]
[1723381538589,0.55,2634.4,2633.9,0.10002065]
[1723381538930,2.65751,2634.1,2633.9,0.10002065]
[1723381539138,0.55,2634.0,2633.9,0.10002065]
[1723381539290,0.55,2634.0,2633.5,3.0]
[1723381539742,0.55,2634.0,2633.6,0.10028561]
[1723381540021,0.870748,2634.0,2633.6,2.75822561]
[1723381540222,0.870748,2634.0,2633.6,0.10028561]
[1723381540223,0.55,2634.0,2633.6,0.10028561]
[1723381540404,5.3157,2633.7,2633.6,0.10028561]
[1723381540599,5.3157,2633.7,2633.0,2.4295]
[1723381540600,2.65812,2633.5,2633.0,2.4295]
[1723381541223,3.20822,2633.4,2633.0,2.4295]
[1723381541427,2.65853,2633.1,2632.6,2.4295]
[1723381541629,0.55,2633.0,2632.4,2.65906]
[1723381541787,0.55,2633.0,2632.1,2.4295]
[1723381541788,2.65878,2632.8,2632.2,2.65931]
[1723381541989,2.65897,2632.6,2632.1,2.4295]
[1723381542327,2.979867,2632.6,2631.9,2.65962]
[1723381542520,2.979867,2632.6,2632.2,0.1012104]
[1723381542521,0.55,2632.5,2632.2,0.1012104]
[1723381542705,0.55,2632.5,2632.0,2.65949]
[1723381543033,0.55,2632.5,2632.3,0.10115543]
[1723381543229,0.55,2632.5,2632.2,2.6593]
[1723381543390,0.55,2632.5,2632.4,0.10110047]
[1723381543591,0.55,2632.7,2632.3,0.10115543]
[1723381543826,0.55,2632.7,2632.4,0.10110047]
[1723381543827,2.65906,2632.5,2632.4,0.10110047]
[1723381544027,2.65936,2632.3,2631.6,2.65989]
[1723381544190,6.356878,2632.7,2632.1,2.65937]
[1723381544614,6.356878,2632.7,2631.7,0.10148531]
[1723381544615,6.356878,2632.7,2632.2,0.1012104]
[1723381544927,6.356878,2632.7,2631.4,2.3772]
[1723381544928,2.6594,2632.2,2631.5,5.32012]
[1723381545125,0.55,2632.1,2631.5,2.66006]
[1723381545328,0.55,2632.1,2631.6,0.10154031]
[1723381545506,2.65957,2632.0,2631.6,0.10154031]
[1723381545704,0.55,2632.1,2631.6,0.10154031]
[1723381545908,0.55,2632.1,2631.6,2.76150031]
[1723381546228,0.55,2632.1,2631.7,2.65986]
[1723381546528,0.55,2632.3,2632.1,2.6594]
[1723381546696,3.20904,2632.6,2631.9,2.6596]
[1723381546894,0.55,2632.6,2632.2,0.1012104]
[1723381547127,2.65869,2632.9,2632.3,2.6592]
[1723381547298,2.65871,2632.9,2632.3,0.10115543]
[1723381547496,2.65894,2632.7,2632.0,2.6595]
[1723381547836,0.8211443,2632.9,2632.4,0.10110047]
[1723381548050,2.65903,2632.6,2631.9,2.93571303]
[1723381548244,5.31808,2632.6,2632.5,0.10104551]
[1723381548410,3.20903,2632.6,2631.7,2.65979]
[1723381548736,0.55,2632.5,2631.8,0.60512932]
[1723381548945,0.55,2632.5,2632.0,2.65956]
[1723381549099,0.55,2632.5,2632.1,2.65947]
[1723381549421,5.6586,2633.0,2632.4,2.65907]
[1723381549623,3.794528,2633.0,2632.1,2.76071537]
[1723381549826,2.65893,2632.7,2632.5,0.10104551]
[1723381549997,2.65893,2632.7,2632.1,2.65945]
[1723381550198,3.0,2633.0,2632.6,0.10099055]
[1723381550460,4.94537,2633.1,2632.5,2.65899]
[1723381550740,9.95842,2633.2,2632.6,0.10099055]
[1723381551032,9.95842,2633.2,2632.5,5.849811]
[1723381551236,4.94511,2633.4,2632.6,0.5849811]
[1723381551398,2.65821,2633.4,2632.6,0.10099055]
[1723381551603,2.65821,2633.4,2632.8,2.65873]
[1723381551811,2.65821,2633.4,2632.9,2.65865]
[1723381552098,9.95808,2633.5,2633.0,2.65852]
[1723381552334,2.65808,2633.5,2632.8,2.65868]
[1723381552535,2.65816,2633.4,2632.8,2.65868]
[1723381552704,2.65816,2633.4,2632.9,0.09749646]
[1723381553211,2.65816,2633.4,2632.8,2.65868]
[1723381553406,2.6584,2633.2,2632.6,2.65888]
[1723381553611,2.6584,2633.2,2632.4,2.65911]
[1723381553612,3.20853,2633.1,2632.9,0.09749646]
[1723381553897,2.65856,2633.0,2632.4,2.6591]
[1723381554102,0.55,2632.9,2632.5,0.26591]
[1723381554412,0.55,2632.9,2632.5,2.92492]
[1723381554615,2.65853,2633.1,2632.5,2.92492]
[1723381554616,3.20863,2633.0,2632.5,0.26591]
[1723381554832,2.65869,2632.9,2632.2,5.0365]
[1723381555030,3.2088,2632.8,2632.2,2.6593]
[1723381555806,3.2088,2632.8,2632.0,2.65952]
[1723381555807,2.65893,2632.7,2632.1,2.65945]
[1723381556003,0.55,2632.6,2632.1,3.163122]
[1723381556236,0.55,2632.6,2632.2,2.65936]
[1723381556404,3.20883,2632.8,2632.2,3.2416152]
[1723381557272,0.55,2632.8,2632.3,0.09871521]
[1723381557424,0.55,2632.8,2632.3,2.65918]
[1723381557628,2.65851,2633.1,2632.4,2.75779025]
[1723381557629,3.20862,2633.0,2632.4,2.75779025]
[1723381557828,2.65867,2632.9,2632.4,0.09866025]
[1723381558127,0.55,2632.8,2632.4,0.09866025]
[1723381559276,2.65888,2632.7,2632.4,0.09866025]
[1723381559475,2.65888,2632.7,2632.1,2.65941]
[1723381559476,0.55,2632.6,2632.1,2.65941]
[1723381559771,0.55,2632.6,2632.2,0.36465926]
[1723381560130,0.55,2632.6,2632.2,3.02401926]
[1723381560331,0.55,2632.6,2632.3,2.65918]
[1723381560561,0.55,2632.8,2632.4,2.65911]
[1723381560837,0.55,2632.8,2632.4,0.09866371]
[1723381561673,0.55,2632.8,2632.5,2.65901]
[1723381561976,2.65887,2632.7,2632.4,0.40104218]
[1723381562178,5.3178,2632.7,2632.6,0.09855379]
[1723381562481,5.31799,2632.6,2631.9,2.65961]
[1723381562771,0.55,2632.5,2632.0,2.75193138]
[1723381563554,0.55,2632.5,2632.1,2.65947]
[1723381563757,0.55,2632.6,2632.5,2.65906]
[1723381564086,2.65743,2634.2,2632.8,2.6587]
[1723381564087,5.04579,2633.4,2632.8,2.6587]
[1723381564930,5.04579,2633.4,2632.9,2.6586]
[1723381564931,2.3876,2633.4,2632.9,2.6586]
[1723381565136,2.3876,2633.4,2632.8,2.6587]
[1723381565137,2.65832,2633.3,2632.8,2.6587]
[1723381565335,2.3876,2633.4,2633.0,0.09182179]
[1723381565336,5.04585,2633.4,2633.0,0.09182179]
[1723381565559,5.04582,2633.4,2632.9,2.75052673]
[1723381565790,7.3,2633.5,2633.1,2.75016685]
[1723381566078,7.3,2633.5,2632.9,0.07596242]
[1723381566079,2.65776,2633.8,2632.9,0.07596242]
[1723381566293,5.04523,2634.0,2633.3,2.65823]
[1723381566444,5.04523,2634.0,2633.4,0.09159513]
[1723381566637,5.04523,2634.0,2633.5,2.65798]
[1723381566638,2.3876,2634.0,2633.5,2.65798]
[1723381566837,17.31512225,2635.0,2633.7,2.65777]
[1723381566838,2.3876,2634.3,2633.7,2.65777]
[1723381567067,2.3876,2634.3,2633.9,2.65761]
[1723381567269,2.657,2634.6,2634.0,2.74875568]
[1723381567270,5.0446,2634.6,2634.0,2.74875568]
[1723381567450,5.3103,2634.6,2634.0,2.74875568]
[1723381567756,2.6533,2634.6,2634.1,2.6574]
[1723381568001,2.6533,2634.6,2634.2,2.65735]
[1723381568139,3.0,2634.5,2634.2,0.0911559]
[1723381568335,9.95637,2635.2,2634.2,0.0911559]
[1723381568336,2.65664,2634.9,2634.2,0.0911559]
[1723381568552,2.3876,2635.2,2634.1,2.65744]
[1723381568553,2.65692,2634.7,2634.1,2.65744]
[1723381568779,2.65692,2634.7,2634.3,0.09110101]
[1723381569074,2.65692,2634.7,2634.1,2.65744]
[1723381569075,2.65692,2634.7,2634.4,0.09104613]
[1723381569378,2.65692,2634.7,2634.1,2.65738]
[1723381569679,5.31384,2634.7,2634.1,2.65738]
[1723381569976,3.188282,2634.7,2634.2,0.0911559]
[1723381570173,0.531362,2634.7,2634.2,2.7484859]
[1723381570365,5.6568,2634.8,2634.2,2.7484859]
[1723381570976,2.65691,2634.7,2634.2,0.0911559]
[1723381571378,3.0,2634.8,2634.2,2.65729]
[1723381571689,0.55,2634.7,2634.3,0.09110101]
[1723381572075,0.55,2634.7,2634.4,0.09104613]
[1723381572249,3.20685,2634.7,2634.0,5.31499]
[1723381572451,2.3876,2634.6,2633.6,2.65792]
[1723381572651,3.20712,2634.5,2633.8,2.65769]
[1723381572851,3.20712,2634.5,2633.9,0.09132058]
[1723381573442,3.20712,2634.5,2633.6,2.6579]
[1723381573443,2.65742,2634.2,2633.6,2.6579]
[1723381573643,0.55,2634.1,2633.7,0.09143039]
[1723381573984,2.65765,2634.0,2633.4,2.65815]
[1723381574280,0.55,2633.9,2633.4,3.189799]
[1723381574455,0.55,2633.9,2633.5,0.09154021]
[1723381574980,0.55,2633.9,2633.5,2.74959021]
[1723381575576,0.55,2633.9,2633.6,2.65794]
[1723381575778,0.55,2634.1,2633.8,2.65775]
[1723381575977,12.61441,2634.4,2633.7,0.09143039]
[1723381575978,0.55,2634.3,2633.7,0.09143039]
[1723381576180,0.55,2634.3,2633.9,0.09132058]
[1723381576487,2.65736,2634.2,2633.6,2.65787]
[1723381576785,3.20753,2634.1,2633.7,0.09117039]
[1723381577160,3.20753,2634.1,2633.5,2.65805]
[1723381577455,5.86506,2634.1,2633.5,2.65805]
[1723381577767,3.20753,2634.1,2633.6,2.7491453]
[1723381577969,0.55,2634.1,2633.6,2.7491153]
[1723381578138,3.20746,2634.1,2633.6,2.7491153]
[1723381578750,0.55,2634.1,2633.6,2.7491153]
[1723381579684,3.20745,2634.1,2633.6,2.7491153]
[1723381580089,0.55,2634.1,2633.6,2.7491153]
[1723381580389,0.55,2634.2,2633.6,2.77151783]
[1723381580589,0.55,2634.3,2633.8,2.65765]
[1723381580744,3.20725,2634.3,2633.6,5.42938783]
[1723381580947,2.65735,2634.2,2633.9,0.09071811]
[1723381581245,0.55,2634.1,2634.0,0.09066321]
[1723381581455,0.55,2634.1,2633.6,2.95935253]
[1723381581681,0.55,2634.2,2633.7,3.04461317]
[1723381582087,0.55,2634.2,2633.8,2.65773]
[1723381582396,0.55,2634.2,2633.9,0.09071811]
[1723381584493,7.3,2634.4,2633.9,0.09071811]
[1723381584494,0.55,2634.3,2633.9,0.09071811]
[1723381584665,0.55,2634.3,2633.9,2.74826811]
[1723381584982,0.55,2634.3,2633.9,0.09071811]
[1723381585377,0.55,2634.3,2633.9,2.74836811]
[1723381585684,0.55,2634.3,2634.0,2.65753]
[1723381585855,0.55,2634.3,2634.2,2.65735]
[1723381586182,0.55,2634.3,2634.2,2.74745717]
[1723381587356,12.45167,2634.9,2634.3,2.65719]
[1723381587594,5.15167,2634.9,2634.3,2.65719]
[1723381587894,2.6568,2634.8,2634.2,2.73318455]
[1723381588048,2.6568,2634.8,2634.3,0.09005229]
[1723381588249,5.15167,2634.9,2634.3,2.6572]
[1723381588468,2.495,2634.9,2634.4,0.08999741]
[1723381588745,0.55,2634.8,2633.8,2.4174]
[1723381588978,0.55,2634.8,2634.2,2.65734]
[1723381589278,0.55,2634.8,2634.3,2.74708783]
[1723381589658,5.65648,2635.1,2634.3,0.08992783]
[1723381589659,2.65687,2634.7,2634.3,0.08992783]
[1723381589842,0.55,2634.6,2634.1,2.65739]
[1723381590052,0.55,2634.6,2634.2,0.08998272]
[1723381591095,2.65706,2634.5,2634.2,0.08998272]
[1723381591269,3.20715,2634.4,2633.9,2.65763]
[1723381591589,3.20715,2634.4,2634.0,0.08978139]
[1723381592002,0.55,2634.4,2634.0,0.08978139]
[1723381592164,2.65745,2634.1,2634.0,0.08978139]
[1723381592497,3.20745,2634.1,2634.0,0.08978485]
[1723381592792,2.65763,2634.0,2633.4,5.0755]
[1723381593115,0.55,2633.9,2633.5,3.431408]
[1723381593450,0.55,2633.9,2633.5,6.089448]
[1723381593650,0.55,2634.0,2633.7,2.65782]
[1723381593897,0.55,2634.2,2633.8,2.65769]
[1723381594077,0.55,2634.3,2633.8,2.65769]
[1723381595819,2.65747,2634.1,2633.7,0.6089228]
[1723381595990,0.55,2634.0,2633.5,3.431338]
[1723381596488,3.20763,2634.0,2633.5,3.431338]
[1723381597303,3.20763,2634.0,2633.4,2.4174]
[1723381597304,2.65797,2633.6,2633.1,2.65838]
[1723381597660,0.55,2633.5,2633.1,2.65838]
[1723381597867,0.55,2633.5,2633.0,2.4174]
[1723381597868,3.20806,2633.5,2633.0,2.4174]
[1723381598098,0.55,2633.5,2633.0,2.4174]
[1723381598501,0.55,2633.5,2633.1,0.5076]
[1723381598795,0.55,2633.5,2633.1,3.16597]
[1723381599007,3.20786,2633.7,2633.1,3.16597]
[1723381599304,3.20786,2633.7,2632.7,3.0]
[1723381599305,2.495,2633.6,2632.7,2.6588]
[1723381599471,2.65832,2633.3,2632.7,2.6588]
[1723381599667,2.65832,2633.3,2632.8,0.0876385]
[1723381599867,0.55,2633.2,2632.8,0.27464385]
[1723381600072,0.55,2633.2,2632.9,0.08758356]
[1723381600268,2.65847,2633.1,2632.9,0.08758356]
[1723381600538,2.65847,2633.1,2632.0,2.65954]
[1723381600539,2.65893,2632.7,2632.0,2.6595]
[1723381600978,0.55,2632.6,2632.4,2.6591]
[1723381601178,0.55,2632.6,2632.4,5.3182]
[1723381601380,0.55,2632.6,2632.4,2.6591]
[1723381601804,0.55,2632.8,2632.4,2.6591]
[1723381602204,0.55,2632.9,2632.5,0.08780336]
[1723381602917,2.65867,2632.9,2632.5,0.08780336]
[1723381603116,3.20883,2632.8,2632.5,0.08780336]
[1723381603312,2.65888,2632.7,2631.8,5.07712]
[1723381603646,2.65913,2632.5,2631.8,5.884802]
[1723381603787,2.65913,2632.5,2631.9,0.08882493]
[1723381603991,0.55,2632.4,2631.9,0.08882493]
[1723381604188,3.20924,2632.4,2631.9,0.08882493]
[1723381604388,5.86848,2632.4,2631.9,0.08882493]
[1723381604592,2.65935,2632.3,2631.9,0.08882493]
[1723381604832,3.20943,2632.2,2631.9,0.08882493]
[1723381605037,3.20943,2632.2,2631.6,5.1529]
[1723381605038,0.55,2632.2,2631.6,7.81281]
[1723381605193,2.65942,2632.2,2632.0,0.08592064]
[1723381605393,0.55,2632.1,2631.7,0.781281]
[1723381605650,0.55,2632.1,2631.2,5.15333]
[1723381605651,3.20948,2632.1,2631.2,5.15333]
[1723381606130,3.20948,2632.1,2631.3,2.66021]
[1723381606131,2.65973,2631.9,2631.3,2.66021]
[1723381606351,0.55,2631.8,2631.0,2.66057]
[1723381606539,2.66017,2631.5,2630.8,2.493]
[1723381606825,2.66028,2631.3,2630.8,2.493]
[1723381607029,0.55,2631.2,2630.8,2.493]
[1723381608964,0.55,2631.4,2631.3,2.66028]
[1723381609741,0.55,2631.4,2631.3,5.32056]
[1723381610035,2.2742,2632.2,2631.6,2.65993]
[1723381610036,3.0,2632.1,2631.6,2.65993]
[1723381610336,2.65959,2632.0,2631.4,2.66011]
[1723381610699,3.0,2632.1,2631.5,0.07600076]
[1723381611008,3.0,2632.1,2631.6,2.65989]
[1723381611234,5.65948,2632.1,2631.4,3.00213513]
[1723381611535,3.0,2632.1,2631.6,2.65995]
[1723381611832,2.2742,2632.2,2631.8,2.65976]
[1723381612005,7.3,2632.3,2631.8,2.65976]
[1723381612333,7.3,2632.3,2631.7,2.493]
[1723381612334,2.65938,2632.2,2631.7,2.493]
[1723381612635,2.65958,2632.0,2631.4,2.926141]
[1723381612842,3.20967,2631.9,2631.8,0.08323481]
[1723381613084,0.55,2631.9,2631.2,2.66031]
[1723381613330,0.55,2631.9,2631.4,2.6601]
[1723381613528,0.55,2631.9,2631.5,0.0833998]
[1723381614031,2.65987,2631.7,2631.5,0.0833998]
[1723381614233,0.55,2631.6,2631.5,0.0833998]
[1723381614436,2.66009,2631.5,2630.9,3.176056]
[1723381614598,0.55,2631.6,2631.0,3.5441916]
[1723381614599,0.55,2631.4,2631.0,3.5441916]
[1723381614791,3.21003,2631.6,2631.0,3.5441916]
[1723381615010,0.55,2631.6,2631.1,2.66041]
[1723381615210,0.55,2631.6,2631.2,0.53462885]
[1723381615597,0.55,2631.6,2631.0,0.8836816]
[1723381615799,2.66018,2631.4,2631.0,0.8836816]
[1723381615999,0.55,2631.3,2631.1,2.66045]
[1723381616193,0.55,2631.3,2631.0,0.8836816]
[1723381616433,0.55,2631.5,2630.9,0.515386]
[1723381616631,0.55,2631.5,2631.0,5.32103]
[1723381616928,0.55,2631.5,2631.2,2.66034]
[1723381617105,0.55,2631.6,2631.3,0.0846105]
[1723381617311,0.55,2631.6,2631.2,5.1533]
[1723381617312,0.55,2631.6,2631.2,7.81362]
[1723381617507,0.55,2631.7,2631.3,0.08465553]
[1723381617722,3.20993,2631.7,2631.1,2.66046]
[1723381617913,3.20993,2631.7,2630.8,5.493]
[1723381617914,2.66026,2631.4,2631.2,0.08465512]
[1723381618108,2.2742,2631.5,2630.8,2.66072]
[1723381618109,0.55,2631.3,2630.8,2.66072]
[1723381618441,0.55,2631.3,2631.0,2.66057]
[1723381618643,0.55,2631.5,2630.9,0.08482018]
[1723381618797,2.2742,2631.9,2631.1,0.0847136]
[1723381618798,0.55,2631.7,2631.1,0.0847136]
[1723381619131,0.55,2631.8,2631.4,2.66012]
[1723381619343,0.55,2631.8,2631.5,0.08455245]
[1723381620146,0.55,2631.8,2631.7,2.65987]
[1723381620342,0.55,2631.8,2631.5,2.66001]
[1723381620494,0.55,2631.8,2631.5,0.266001]
[1723381620734,0.55,2631.8,2631.7,2.65987]
[1723381620938,7.3,2632.3,2631.9,2.65965]
[1723381621179,14.4642,2632.6,2631.9,2.65965]
[1723381621180,4.93319,2632.6,2631.9,3.2000207]
[1723381621377,4.93319,2632.6,2632.0,0.08422207]
[1723381621598,2.2742,2632.6,2632.1,2.65938]
[1723381621736,2.2742,2632.6,2632.0,0.08422207]
[1723381621936,4.93324,2632.6,2631.9,3.1999807]
[1723381622243,4.93324,2632.6,2632.1,0.08412207]
[1723381622567,7.3,2632.8,2632.3,2.65927]
[1723381622735,7.3,2632.8,2632.3,3.440378]
[1723381622941,2.65848,2633.1,2632.6,2.65896]
[1723381623141,2.65839,2633.2,2632.6,2.6589]
[1723381623459,4.93251,2633.3,2632.6,2.6589]
[1723381623460,2.2742,2633.3,2632.7,0.08379229]
[1723381623676,2.2742,2633.3,2633.1,2.65838]
[1723381623984,2.6577,2633.9,2633.3,2.65818]
[1723381624149,2.2742,2634.0,2633.2,0.08332713]
[1723381624339,2.65799,2633.6,2633.4,0.08300615]
[1723381624539,2.65799,2633.6,2632.9,2.6586]
[1723381624540,2.65805,2633.5,2633.3,0.08306107]
[1723381624788,2.65805,2633.5,2632.9,2.6586]
[1723381625272,2.65749,2634.1,2633.4,2.65807]
[1723381625477,3.170869,2634.1,2633.5,2.65799]
[1723381625704,3.170869,2634.1,2633.4,2.65807]
[1723381625839,3.170869,2634.1,2633.2,2.2998]